fUSD/lending_fUSD_20240222
["ID","MTS","AMOUNT","RATE_DAILY","PERIOD"]
[314886073,1708618277279,-500.0,0.00033424,2]
[314886074,1708618277289,-500.0,0.00033424,4]
[314886075,1708618277299,-500.0,0.00033424,4]
[314886076,1708618277309,-500.0,0.00033424,4]
[314886077,1708618277319,-520.87,0.00033424,4]
[314886078,1708618277329,-732.41,0.00033424,4]
[314886079,1708618277339,-711.38,0.00033424,4]
[314886080,1708618277349,-500.0,0.00033424,4]
[314886081,1708618277362,-548.69,0.00033424,4]
[314886082,1708618277372,-892.63,0.00033424,4]
[314886083,1708618277381,-500.0,0.00033424,4]
[314886084,1708618277391,-610.18,0.00033424,4]
[314886085,1708618277401,-861.61,0.00033424,4]
[314886086,1708618277410,-500.0,0.00033424,4]
[314886087,1708618277420,-500.0,0.00033424,4]
[314886088,1708618277430,-500.0,0.00033424,2]
[314886089,1708618277439,-619.5,0.00033424,4]
[314886090,1708618277448,-783.44,0.00033424,4]
[314886091,1708618277458,-813.29,0.00033424,4]
[314886092,1708618277467,-500.0,0.00033424,14]
[314886093,1708618277478,-500.0,0.00033424,4]
[314886094,1708618277488,-505.78298647,0.00033424,4]
[314886095,1708618277498,-500.0,0.00033424,4]
[314886096,1708618277508,-500.0,0.00033424,4]
[314886097,1708618277518,-500.0,0.00033424,4]
[314886098,1708618277527,-1606.49,0.00033424,4]
[314886099,1708618277537,-500.0,0.00033424,4]
[314886100,1708618277547,-500.0,0.00033424,4]
[314886101,1708618277557,-500.0,0.00033424,4]
[314886102,1708618277566,-962.94,0.00033424,4]
[314886103,1708618277576,-640.35654892,0.00033424,4]
[314886104,1708618277586,-1214.57,0.00033424,4]
[314886105,1708618277596,-500.0,0.00033424,4]
[314886106,1708618277606,-526.30807398,0.00033424,4]
[314886107,1708618277616,-500.0,0.00033424,4]
[314886108,1708618277625,-500.0,0.00033424,4]
[314886109,1708618277635,-500.0,0.00033424,4]
[314886110,1708618277645,-507.72,0.00033424,4]
[314886111,1708618277655,-1287.69,0.00033424,4]
[314886112,1708618277665,-500.0,0.00033424,4]
[314886113,1708618277676,-500.0,0.00033424,4]
[314886114,1708618277686,-500.0,0.00033424,4]
[314886115,1708618277698,-500.0,0.00033424,4]
[314886116,1708618277708,-500.0,0.00033424,2]
[314886117,1708618277717,-500.0,0.00033424,4]
[314886118,1708618277727,-894.45,0.00033424,4]
[314886119,1708618277738,-630.4,0.00033424,4]
[314886120,1708618277748,-500.0,0.00033424,4]
[314886121,1708618277759,-510.50032338,0.00033424,4]
[314886122,1708618277770,-500.0,0.00033424,4]
[314886123,1708618277781,-500.0,0.00033424,4]
[314886124,1708618277791,-500.0,0.00033424,4]
[314886125,1708618277801,-500.0,0.00033424,4]
[314886126,1708618277811,-500.0,0.00033424,4]
[314886127,1708618277821,-453.64817129,0.00033424,4]
[314886128,1708618277832,-514.74111813,0.00033424,4]
[314886129,1708618277842,-638.89,0.00033424,4]
[314886130,1708618277852,-500.0,0.00033424,4]
[314886131,1708618277862,-500.0,0.00033424,4]
[314886132,1708618277873,-512.93,0.00033424,4]
[314886133,1708618277883,-500.0,0.00033424,4]
[314886134,1708618277893,-500.0,0.00033424,4]
[314886135,1708618277902,-500.0,0.00033424,4]
[314886136,1708618277913,-906.48,0.00033424,4]
[314886137,1708618277922,-1102.31,0.00033424,4]
[314886138,1708618277932,-500.0,0.00033424,4]
[314886139,1708618277942,-500.0,0.00033424,4]
[314886140,1708618277952,-504.6021709,0.00033424,4]
[314886141,1708618277962,-612.98,0.00033424,4]
[314886142,1708618277972,-500.0,0.00033424,4]
[314886143,1708618277982,-652.81,0.00033424,4]
[314886144,1708618277992,-641.06802224,0.00033424,4]
[314886145,1708618278003,-532.10407572,0.00033424,4]
[314886146,1708618278014,-514.91,0.00033424,4]
[314886147,1708618278024,-506.1999124,0.00033424,4]
[314886148,1708618278034,-500.0,0.00033424,4]
[314886149,1708618278044,-500.0,0.00033424,4]
[314886150,1708618278054,-500.0,0.00033424,4]
[314886151,1708618278063,-500.0,0.00033424,4]
[314886152,1708618278073,-691.7,0.00033424,4]
[314886153,1708618278082,-580.95,0.00033424,4]
[314886154,1708618278092,-500.0,0.00033424,4]
[314886155,1708618278101,-500.0,0.00033424,4]
[314886156,1708618278111,-500.0,0.00033424,4]
[314886157,1708618278120,-500.0,0.00033424,4]
[314886158,1708618278131,-500.0,0.00033424,4]
[314886159,1708618278140,-834.16,0.00033424,4]
[314886160,1708618278150,-500.0,0.00033424,4]
[314886161,1708618278159,-517.56883194,0.00033424,4]
[314886162,1708618278169,-500.0,0.00033424,4]
[314886163,1708618278178,-542.88,0.00033424,4]
[314886164,1708618278187,-361.96862606,0.00033424,4]
[314886165,1708618278197,-500.0,0.00033424,4]
[314886166,1708618278207,-975.58,0.00033424,4]
[314886167,1708618278216,-640.59698833,0.00033424,4]
[314886168,1708618278226,-500.0,0.00033424,4]
[314886169,1708618278236,-500.0,0.00033424,4]
[314886170,1708618278246,-500.0,0.00033424,4]
[314886171,1708618278256,-500.0,0.00033424,4]
[314886172,1708618278265,-150.0,0.00033424,4]
[314886173,1708618278274,-891.4,0.00033424,4]
[314886174,1708618278288,-1203.02,0.00033424,4]
[314886175,1708618278298,-502.81784579,0.00033424,4]
[314886176,1708618278307,-500.0,0.00033424,4]
[314886177,1708618278317,-500.0,0.00033424,4]
[314886178,1708618278327,-500.0,0.00033424,4]
[314886179,1708618278337,-788.82,0.00033424,4]
[314886180,1708618278346,-500.0,0.00033424,4]
[314886181,1708618278356,-500.0,0.00033424,4]
[314886182,1708618278366,-562.47,0.00033424,4]
[314886183,1708618278375,-746.08,0.00033424,4]
[314886184,1708618278385,-500.0,0.00033424,4]
[314886185,1708618278395,-500.0,0.00033424,4]
[314886186,1708618278404,-560.55,0.00033424,4]
[314886187,1708618278414,-537.3,0.00033424,4]
[314886188,1708618278423,-500.0,0.00033424,4]
[314886189,1708618278433,-500.0,0.00033424,4]
[314886190,1708618278443,-824.56,0.00033424,4]
[314886191,1708618278453,-500.0,0.00033424,4]
[314886192,1708618278463,-500.0,0.00033424,4]
[314886193,1708618278473,-909.09,0.00033424,4]
[314886194,1708618278483,-500.0,0.00033424,4]
[314886195,1708618278493,-500.0,0.00033424,4]
[314886196,1708618278503,-500.0,0.00033424,4]
[314886197,1708618278514,-771.9,0.00033424,4]
[314886198,1708618278524,-500.0,0.00033424,4]
[314886199,1708618278534,-500.0,0.00033424,4]
[314886200,1708618278544,-545.15829556,0.00033424,2]
[314886201,1708618278554,-500.0,0.00033424,4]
[314886202,1708618278564,-618.1,0.00033424,4]
[314886203,1708618278574,-566.71,0.00033424,4]
[314886204,1708618278584,-585.55628224,0.00033424,4]
[314886205,1708618278593,-3396.29,0.00033424,4]
[314886206,1708618278604,-513.34602846,0.00033424,4]
[314886207,1708618278614,-500.0,0.00033424,4]
[314886208,1708618278624,-1000.0,0.00033424,7]
[314886209,1708618278633,-500.0,0.00033424,4]
[314886210,1708618278643,-788.62,0.00033424,4]
[314886211,1708618278654,-702.3,0.00033424,4]
[314886212,1708618278664,-500.0,0.00033424,4]
[314886213,1708618278676,-500.0,0.00033424,4]
[314886214,1708618278686,-500.0,0.00033424,4]
[314886215,1708618278696,-500.0,0.00033424,4]
[314886216,1708618278706,-689.47,0.00033424,4]
[314886217,1708618278716,-500.0,0.00033424,4]
[314886218,1708618278728,-500.0,0.00033424,4]
[314886219,1708618278739,-500.0,0.00033424,4]
[314886220,1708618278750,-500.0,0.00033424,4]
[314886221,1708618278762,-907.94,0.00033424,4]
[314886222,1708618278773,-500.0,0.00033424,4]
[314886223,1708618278782,-885.64,0.00033424,4]
[314886224,1708618278792,-500.0,0.00033424,4]
[314886225,1708618278802,-1733.3,0.00033424,4]
[314886226,1708618279187,-433.20770594,0.00033424,4]
[314886227,1708618279205,-500.0,0.00033424,4]
[314886228,1708618279215,-500.0,0.00033424,4]
[314886229,1708618279229,-500.0,0.00033424,4]
[314886230,1708618279239,-683.07,0.00033424,4]
[314886231,1708618279249,-500.0,0.00033424,4]
[314886232,1708618279260,-800.64,0.00033424,4]
[314886233,1708618279270,-500.0,0.00033424,4]
[314886234,1708618279280,-692.0,0.00033424,4]
[314886235,1708618279289,-500.0,0.00033424,4]
[314886236,1708618279299,-1079.35,0.00033424,4]
[314886237,1708618279309,-696.6,0.00033424,4]
[314886238,1708618279318,-500.0,0.00033424,4]
[314886239,1708618279328,-500.0,0.00033424,4]
[314886240,1708618279337,-500.0,0.00033424,4]
[314886241,1708618279347,-500.0,0.00033424,4]
[314886242,1708618279356,-500.0,0.00033424,4]
[314886243,1708618279366,-500.0,0.00033424,4]
[314886244,1708618279375,-500.0,0.00033424,4]
[314886245,1708618279385,-1257.16,0.00033424,4]
[314886246,1708618279395,-2402.47,0.00033424,4]
[314886247,1708618279404,-500.0,0.00033424,4]
[314886248,1708618279414,-500.0,0.00033424,4]
[314886249,1708618279423,-500.0,0.00033424,4]
[314886250,1708618279433,-729.4,0.00033424,4]
[314886251,1708618279443,-1114.12,0.00033424,4]
[314886252,1708618279453,-283.24306745,0.00033424,4]
[314886253,1708618279463,-500.0,0.00033424,4]
[314886254,1708618279473,-563.94,0.00033424,4]
[314886255,1708618279483,-500.0,0.00033424,4]
[314886256,1708618279493,-500.0,0.00033424,4]
[314886257,1708618279503,-519.85,0.00033424,4]
[314886258,1708618279515,-2169.02,0.00033424,4]
[314886259,1708618279525,-424.59623962,0.00033424,4]
[314886260,1708618279535,-500.0,0.00033424,4]
[314886261,1708618279544,-500.0,0.00033424,4]
[314886262,1708618279555,-911.71,0.00033424,4]
[314886263,1708618279564,-500.0,0.00033424,4]
[314886264,1708618279574,-500.0,0.00033424,4]
[314886265,1708618279584,-500.0,0.00033424,4]
[314886266,1708618279594,-764.55,0.00033424,4]
[314886267,1708618279603,-1111.18,0.00033424,4]
[314886268,1708618279614,-981.11,0.00033424,4]
[314886269,1708618279624,-15474.83,0.00033424,4]
[314886270,1708618279633,-1310.6,0.00033424,4]
[314886271,1708618279643,-3161.47,0.00033424,4]
[314886272,1708618279653,-774.09,0.00033424,4]
[314886273,1708618279664,-508.43176579,0.00033424,4]
[314886274,1708618279676,-500.0,0.00033424,4]
[314886275,1708618279686,-500.0,0.00033424,4]
[314886276,1708618279698,-429.34883856,0.00033424,4]
[314886277,1708618279707,-286.33743304,0.00033424,4]
[314886278,1708618279718,-510.45954259,0.00033424,4]
[314886279,1708618279728,-500.0,0.00033424,4]
[314886280,1708618279739,-765.57,0.00033424,4]
[314886281,1708618279748,-1414.29,0.00033424,2]
[314886282,1708618279758,-500.0,0.00033424,4]
[314886283,1708618279768,-500.0,0.00033424,4]
[314886284,1708618279778,-500.0,0.00033424,4]
[314886285,1708618279788,-1179.58,0.00033424,4]
[314886286,1708618279798,-649.86,0.00033424,4]
[314886287,1708618279809,-500.0,0.00033424,4]
[314886288,1708618279818,-1574.17,0.00033424,4]
[314886289,1708618279828,-500.0,0.00033424,4]
[314886290,1708618279839,-500.0,0.00033424,4]
[314886291,1708618279850,-685.37,0.00033424,4]
[314886292,1708618279860,-500.0,0.00033424,4]
[314886293,1708618279869,-4743.37,0.00033424,4]
[314886294,1708618279879,-841.39,0.00033424,4]
[314886295,1708618279889,-500.0,0.00033424,4]
[314886296,1708618279899,-500.0,0.00033424,4]
[314886297,1708618279908,-571.87,0.00033424,4]
[314886298,1708618279918,-500.0,0.00033424,4]
[314886299,1708618279928,-1517.29,0.00033424,4]
[314886300,1708618279937,-500.0,0.00033424,4]
[314886301,1708618279947,-500.0,0.00033424,4]
[314886302,1708618279956,-500.0,0.00033424,4]
[314886303,1708618279966,-1175.74,0.00033424,4]
[314886304,1708618279975,-3534.15,0.00033424,4]
[314886305,1708618279984,-636.4,0.00033424,4]
[314886306,1708618279994,-500.0,0.00033424,4]
[314886307,1708618280003,-500.0,0.00033424,4]
[314886308,1708618280016,-804.83,0.00033424,4]
[314886309,1708618280026,-500.0,0.00033424,4]
[314886310,1708618280037,-500.0,0.00033424,4]
[314886311,1708618280047,-500.0,0.00033424,4]
[314886312,1708618280057,-650.72,0.00033424,4]
[314886313,1708618280067,-802.34,0.00033424,4]
[314886314,1708618280076,-936.23,0.00033424,4]
[314886315,1708618280086,-500.0,0.00033424,4]
[314886316,1708618280096,-1046.17,0.00033424,4]
[314886317,1708618280106,-500.0,0.00033424,4]
[314886318,1708618280115,-1976.0,0.00033424,4]
[314886319,1708618280125,-500.0,0.00033424,4]
[314886320,1708618280134,-500.0,0.00033424,4]
[314886321,1708618280144,-1173.75,0.00033424,4]
[314886322,1708618280154,-507.87606902,0.00033424,4]
[314886323,1708618280164,-3825.32,0.00033424,4]
[314886324,1708618280173,-500.0,0.00033424,4]
[314886325,1708618280183,-1218.45,0.00033424,4]
[314886326,1708618280192,-1161.2,0.00033424,4]
[314886327,1708618280202,-2873.73,0.00033424,4]
[314886328,1708618280212,-1421.83,0.00033424,4]
[314886329,1708618280222,-565.23,0.00033424,4]
[314886330,1708618280231,-500.0,0.00033424,4]
[314886331,1708618280240,-626.07,0.00033424,4]
[314886332,1708618280250,-890.32,0.00033424,4]
[314886333,1708618280261,-500.0,0.00033424,4]
[314886334,1708618280270,-500.0,0.00033424,4]
[314886335,1708618280280,-500.0,0.00033424,4]
[314886336,1708618280293,-4927.14,0.00033424,4]
[314886337,1708618280302,-500.0,0.00033424,4]
[314886338,1708618280312,-500.0,0.00033424,4]
[314886339,1708618280321,-549.85,0.00033424,4]
[314886340,1708618280331,-10020.14,0.00033424,4]
[314886341,1708618280340,-500.0,0.00033424,4]
[314886342,1708618280349,-500.0,0.00033424,4]
[314886343,1708618280359,-500.0,0.00033424,4]
[314886344,1708618280369,-839.6,0.00033424,4]
[314886345,1708618280378,-500.0,0.00033424,4]
[314886346,1708618280388,-500.0,0.00033424,4]
[314886347,1708618280397,-500.0,0.00033424,4]
[314886348,1708618280407,-500.0,0.00033424,4]
[314886349,1708618280416,-3895.73,0.00033424,4]
[314886350,1708618280425,-1324.86,0.00033424,4]
[314886351,1708618280434,-4532.66,0.00033424,4]
[314886352,1708618280444,-500.0,0.00033424,2]
[314886353,1708618280454,-1267.59,0.00033424,4]
[314886354,1708618280463,-1236.64,0.00033424,4]
[314886355,1708618280474,-500.0,0.00033424,4]
[314886356,1708618280483,-500.0,0.00033424,4]
[314886357,1708618280492,-500.0,0.00033424,4]
[314886358,1708618280502,-541.46,0.00033424,4]
[314886359,1708618280513,-607.65860422,0.00033424,4]
[314886360,1708618280522,-1472.5,0.00033424,4]
[314886361,1708618280532,-500.0,0.00033424,4]
[314886362,1708618280542,-500.0,0.00033424,4]
[314886363,1708618280552,-500.0,0.00033424,4]
[314886364,1708618280561,-3676.7,0.00033424,4]
[314886365,1708618280572,-825.18,0.00033424,4]
[314886366,1708618280582,-2806.56,0.00033424,4]
[314886367,1708618280592,-757.82,0.00033424,4]
[314886368,1708618280602,-915.58,0.00033424,4]
[314886369,1708618280612,-500.0,0.00033424,4]
[314886370,1708618280622,-1290.4,0.00033424,4]
[314886371,1708618280631,-520.1764164,0.00033424,4]
[314886372,1708618280641,-500.0,0.00033424,4]
[314886373,1708618280651,-500.0,0.00033424,4]
[314886374,1708618280661,-500.0,0.00033424,4]
[314886375,1708618280670,-500.0,0.00033424,4]
[314886376,1708618280680,-500.0,0.00033424,4]
[314886377,1708618280690,-968.98,0.00033424,4]
[314886378,1708618280703,-13677.78,0.00033424,4]
[314886379,1708618280713,-500.0,0.00033424,4]
[314886380,1708618280723,-11640.88,0.00033424,4]
[314886381,1708618280734,-1043.72,0.00033424,4]
[314886382,1708618280744,-500.0,0.00033424,4]
[314886383,1708618280754,-500.0,0.00033424,4]
[314886384,1708618280766,-1326.85,0.00033424,4]
[314886385,1708618280777,-2733.42,0.00033424,4]
[314886386,1708618280787,-720.82,0.00033424,4]
[314886387,1708618280797,-500.0,0.00033424,4]
[314886388,1708618280806,-1391.36,0.00033424,4]
[314886389,1708618280816,-1085.88,0.00033424,4]
[314886390,1708618280826,-1337.26,0.00033424,4]
[314886391,1708618280836,-500.0,0.00033424,4]
[314886392,1708618280845,-597.84,0.00033424,4]
[314886393,1708618280856,-500.0,0.00033424,4]
[314886394,1708618280865,-11071.3,0.00033424,4]
[314886395,1708618280875,-500.0,0.00033424,4]
[314886396,1708618280885,-2947.99,0.00033424,4]
[314886397,1708618280895,-500.0,0.00033424,4]
[314886398,1708618280905,-630.25,0.00033424,4]
[314886399,1708618280914,-8731.79,0.00033424,4]
[314886400,1708618280923,-500.0,0.00033424,4]
[314886401,1708618280932,-500.0,0.00033424,4]
[314886402,1708618280942,-500.0,0.00033424,4]
[314886403,1708618280952,-926.35,0.00033424,4]
[314886404,1708618280962,-540.23,0.00033424,4]
[314886405,1708618280971,-947.73,0.00033424,4]
[314886406,1708618280981,-500.0,0.00033424,4]
[314886407,1708618280991,-16800.98,0.00033424,4]
[314886408,1708618281001,-679.52,0.00033424,4]
[314886409,1708618281013,-500.0,0.00033424,4]
[314886410,1708618281023,-2763.45,0.00033424,4]
[314886411,1708618281033,-500.0,0.00033424,4]
[314886412,1708618281042,-500.0,0.00033424,4]
[314886413,1708618281053,-2283.83,0.00033424,4]
[314886414,1708618281062,-593.3,0.00033424,4]
[314886415,1708618281072,-923.93,0.00033424,4]
[314886416,1708618281081,-500.0,0.00033424,4]
[314886417,1708618281091,-500.0,0.00033424,4]
[314886418,1708618281102,-2615.23,0.00033424,4]
[314886419,1708618281111,-500.0,0.00033424,4]
[314886420,1708618281121,-500.0,0.00033424,4]
[314886421,1708618281131,-500.0,0.00033424,4]
[314886422,1708618281141,-1449.55,0.00033424,4]
[314886423,1708618281151,-7029.3,0.00033424,4]
[314886424,1708618281161,-1361.97,0.00033424,4]
[314886425,1708618281171,-500.0,0.00033424,4]
[314886426,1708618281180,-4630.87,0.00033424,4]
[314886427,1708618281190,-747.57,0.00033424,4]
[314886428,1708618281200,-500.0,0.00033424,4]
[314886429,1708618281210,-2615.07,0.00033424,4]
[314886430,1708618281219,-618.94,0.00033424,4]
[314886431,1708618281229,-500.0,0.00033424,4]
[314886432,1708618281238,-500.0,0.00033424,4]
[314886433,1708618281248,-521.85,0.00033424,4]
[314886434,1708618281260,-500.0,0.00033424,4]
[314886435,1708618281272,-651.84,0.00033424,4]
[314886436,1708618281282,-5949.77,0.00033424,4]
[314886437,1708618281293,-805.0,0.00033424,4]
[314886438,1708618281303,-3716.68,0.00033424,4]
[314886439,1708618281314,-500.0,0.00033424,4]
[314886440,1708618281325,-500.0,0.00033424,4]
[314886441,1708618281337,-779.4,0.00033424,4]
[314886442,1708618281351,-500.0,0.00033424,4]
[314886443,1708618281363,-20142.64,0.00033424,4]
[314886444,1708618281374,-271.37417302,0.00033424,4]
[314886445,1708618281386,-44388.41,0.00033424,4]
[314886446,1708618281395,-814.71,0.00033424,4]
[314886447,1708618281406,-14555.66,0.00033424,4]
[314886448,1708618281416,-1879.92,0.00033424,4]
[314886449,1708618281426,-17970.35,0.00033424,4]
[314886450,1708618281436,-500.0,0.00033424,4]
[314886451,1708618281446,-4888.9,0.00033424,4]
[314886452,1708618281457,-500.0,0.00033424,4]
[314886453,1708618281467,-500.0,0.00033424,4]
[314886454,1708618281477,-780.0,0.00033424,4]
[314886455,1708618281487,-557.21,0.00033424,4]
[314886456,1708618281498,-445.19732736,0.00033424,4]
[314886457,1708618281508,-4527.53,0.00033424,4]
[314886458,1708618281522,-651.25,0.00033424,4]
[314886459,1708618281532,-945.38,0.00033424,4]
[314886460,1708618281543,-592.68,0.00033424,4]
[314886461,1708618281552,-912.38,0.00033424,4]
[314886462,1708618281563,-875.97,0.00033424,4]
[314886463,1708618281573,-500.0,0.00033424,4]
[314886464,1708618281584,-2182.16,0.00033424,4]
[314886465,1708618281594,-500.0,0.00033424,4]
[314886466,1708618281705,-1658.86,0.00033424,4]
[314886467,1708618281716,-5603.3,0.00033424,4]
[314886468,1708618281726,-509.43,0.00033424,4]
[314886469,1708618281736,-4769.66,0.00033424,4]
[314886470,1708618281746,-1891.76,0.00033424,4]
[314886471,1708618281762,-3057.33,0.00033424,4]
[314886472,1708618281772,-928.0,0.00033424,4]
[314886473,1708618281782,-500.0,0.00033424,4]
[314886474,1708618281793,-500.0,0.00033424,4]
[314886475,1708618281802,-502.92,0.00033424,4]
[314886476,1708618281812,-500.0,0.00033424,4]
[314886477,1708618281822,-1276.48,0.00033424,4]
[314886478,1708618281831,-952.51,0.00033424,4]
[314886479,1708618281841,-500.0,0.00033424,4]
[314886480,1708618281851,-1592.68,0.00033424,4]
[314886481,1708618281860,-648.5,0.00033424,4]
[314886482,1708618281869,-500.0,0.00033424,4]
[314886483,1708618281878,-500.0,0.00033424,4]
[314886484,1708618281887,-2577.86,0.00033424,4]
[314886485,1708618281896,-764.22,0.00033424,4]
[314886486,1708618281905,-2067.66,0.00033424,4]
[314886487,1708618281914,-500.0,0.00033424,4]
[314886488,1708618281923,-555.52,0.00033424,4]
[314886489,1708618281932,-973.82,0.00033424,4]
[314886490,1708618281942,-500.0,0.00033424,4]
[314886491,1708618281951,-8363.0,0.00033424,4]
[314886492,1708618281961,-828.25,0.00033424,4]
[314886493,1708618281970,-1608.06,0.00033424,4]
[314886494,1708618281980,-1134.25,0.00033424,4]
[314886495,1708618281989,-500.0,0.00033424,4]
[314886496,1708618281998,-500.0,0.00033424,4]
[314886497,1708618282007,-500.0,0.00033424,4]
[314886498,1708618282018,-1991.26,0.00033424,4]
[314886499,1708618282028,-2943.6,0.00033424,4]
[314886500,1708618282037,-500.64,0.00033424,4]
[314886501,1708618282046,-500.0,0.00033424,4]
[314886502,1708618282055,-500.0,0.00033424,4]
[314886503,1708618282065,-500.0,0.00033424,4]
[314886504,1708618282074,-4028.42,0.00033424,4]
[314886505,1708618282083,-500.0,0.00033424,4]
[314886506,1708618282092,-500.0,0.00033424,4]
[314886507,1708618282101,-500.0,0.00033424,4]
[314886508,1708618282110,-2579.27,0.00033424,4]
[314886509,1708618282120,-202.30656041,0.00033424,4]
[314886510,1708618282129,-500.0,0.00033424,4]
[314886511,1708618282139,-500.0,0.00033424,4]
[314886512,1708618282148,-7949.52,0.00033424,4]
[314886513,1708618282157,-500.0,0.00033424,4]
[314886514,1708618282167,-500.0,0.00033424,4]
[314886515,1708618282176,-1059.69,0.00033424,4]
[314886516,1708618282185,-13744.51,0.00033424,4]
[314886517,1708618282194,-700.35,0.00033424,4]
[314886518,1708618282203,-500.0,0.00033424,4]
[314886519,1708618282212,-563.26,0.00033424,4]
[314886520,1708618282222,-500.0,0.00033424,4]
[314886521,1708618282231,-880.24,0.00033424,4]
[314886522,1708618282240,-568.66,0.00033424,4]
[314886523,1708618282249,-500.0,0.00033424,4]
[314886524,1708618282260,-500.0,0.00033424,4]
[314886525,1708618282270,-500.0,0.00033424,4]
[314886526,1708618282279,-500.0,0.00033424,4]
[314886527,1708618282288,-1848.07,0.00033424,4]
[314886528,1708618282297,-500.0,0.00033424,4]
[314886529,1708618282306,-1953.77,0.00033424,4]
[314886530,1708618282316,-500.0,0.00033424,4]
[314886531,1708618282325,-529.33,0.00033424,4]
[314886532,1708618282333,-1626.52,0.00033424,4]
[314886533,1708618282342,-500.0,0.00033424,4]
[314886534,1708618282351,-500.0,0.00033424,4]
[314886535,1708618282360,-500.0,0.00033424,4]
[314886536,1708618282369,-2300.47,0.00033424,4]
[314886537,1708618282378,-672.98,0.00033424,4]
[314886538,1708618282387,-500.0,0.00033424,4]
[314886539,1708618282397,-594.09,0.00033424,4]
[314886540,1708618282407,-4629.08,0.00033424,4]
[314886541,1708618282416,-642.74,0.00033424,4]
[314886542,1708618282425,-1295.86,0.00033424,4]
[314886543,1708618282434,-937.11,0.00033424,4]
[314886544,1708618282443,-500.0,0.00033424,4]
[314886545,1708618282452,-4061.2,0.00033424,4]
[314886546,1708618282462,-500.0,0.00033424,4]
[314886547,1708618282471,-500.0,0.00033424,4]
[314886548,1708618282480,-852.61,0.00033424,4]
[314886549,1708618282489,-6229.14,0.00033424,4]
[314886550,1708618282499,-726.38,0.00033424,4]
[314886551,1708618282507,-500.0,0.00033424,4]
[314886552,1708618282519,-1087.51,0.00033424,4]
[314886553,1708618282528,-500.0,0.00033424,4]
[314886554,1708618282537,-500.0,0.00033424,4]
[314886555,1708618282547,-636.4,0.00033424,4]
[314886556,1708618282556,-500.0,0.00033424,4]
[314886557,1708618282566,-1021.86,0.00033424,4]
[314886558,1708618282575,-500.0,0.00033424,4]
[314886559,1708618282584,-500.0,0.00033424,4]
[314886560,1708618282593,-838.89,0.00033424,4]
[314886561,1708618282603,-500.0,0.00033424,4]
[314886562,1708618282612,-500.0,0.00033424,4]
[314886563,1708618282621,-500.0,0.00033424,4]
[314886564,1708618282630,-1009.87327385,0.00033424,7]
[314886565,1708618282640,-500.0,0.00033424,4]
[314886566,1708618282650,-500.0,0.00033424,4]
[314886567,1708618282660,-1127.74,0.00033424,4]
[314886568,1708618282671,-3515.32,0.00033424,4]
[314886569,1708618282680,-672.53,0.00033424,4]
[314886570,1708618282690,-11133.39,0.00033424,4]
[314886571,1708618282702,-726.29,0.00033424,4]
[314886572,1708618282711,-537.16,0.00033424,4]